[Event "36th German Seniors-ch-65 2024"]
[Site "Bad Wildungen"]
[Date "2024.08.28"]
[Round "6.9"]
[White "Kaeding, Rainer"]
[Black "Kornrumpf, Joachim"]
[Result "1-0"]
[ECO "B42"]
[WhiteElo "2116"]
[BlackElo "2029"]
[Annotator "RC"]
[PlyCount "65"]
[EventDate "2024.08.22"]
[EventType "swiss"]
[EventCountry "GER"]
[SourceTitle "playchess.com"]
[Source "ChessBase"]
[SourceQuality "1"]
[TimeControl "40/5400+30:1800+30"]

1. e4 {[%emt 0:00:09]} c5 {[%emt 0:00:14]} 2. Nf3 {[%emt 0:00:00]} e6 {[%emt 0:00:00]} 3. d4 {[%emt 0:00:11]} cxd4 {[%emt 0:00:00]} 4. Nxd4 {[%emt 0:00:04]} a6 {[%emt 0:00:01]} 5. Bd3 {[%emt 0:00:59]} Nf6 {[%emt 0:01:23]} 6. O-O {[%emt 0:00:53]} Qc7 {[%emt 0:00:32]} 7. Qe2 {[%emt 0:00:38]} d6 {[%emt 0:00:43]} 8. c4 {[%emt 0:01:51]} g6 {[%emt 0:01:52]} 9. Nc3 {[%emt 0:02:14]} Bg7 {[%emt 0:01:08]} 10. Nf3 {[%emt 0:00:50]} O-O {[%emt 0:01:40]} 11. h3 {[%emt 0:03:23]} Nc6 {[%emt 0:04:57]} 12. Be3 {[%emt 0:01:32]} b6 {[%emt 0:03:00]} 13. Rac1 {[%emt 0:03:37]} Nd7 {[%emt 0:04:53]} 14. Rfd1 {[%emt 0:03:52]} Nde5 {[%emt 0:07:17]} 15. Nxe5 {[%emt 0:07:04]} dxe5 {[%emt 0:13:15]} 16. Nd5 {[%emt 0:03:47]} exd5 {[%emt 0:07:53]} 17. cxd5 {[%emt 0:00:06]} Qb7 {[%emt 0:27:06]} 18. Rxc6 {[%emt 0:02:29]} b5 {[%emt 0:03:20]} 19. Rdc1 {[%emt 0:01:29]} f5 {[%emt 0:06:52]} 20. Rc7 {[%emt 0:01:05]} Qb8 {[%emt 0:00:24]} 21. f3 {[%emt 0:03:15]} Bb7 {[%emt 0:04:28]} 22. Qc2 {[%emt 0:02:35]} f4 {[%emt 0:01:21]} 23. Bf2 {[%emt 0:00:24]} Bf6 {[%emt 0:02:14]} 24. Qb3 {[%emt 0:12:42]} Kh8 {[%emt 0:02:35]} 25. a4 {[%emt 0:04:30]} Bd8 {[%emt 0:00:32]} 26. R7c2 {[%emt 0:00:55]} bxa4 {[%emt 0:01:45]} 27. Qxa4 {[%emt 0:00:42]} Be7 {[%emt 0:00:57]} 28. Qd7 {[%emt 0:00:50]} Bd6 {[%emt 0:01:37]} 29. Kh2 {[%emt 0:03:31]} Rd8 {[%emt 0:01:02]} 30. Qe6 {[%emt 0:00:37]} Re8 {[%emt 0:00:53]} 31. Qf6+ {[%emt 0:00:56]} Kg8 {[%emt 0:00:01]} 32. Bc5 {[%emt 0:01:31]} Bc7 {[%emt 0:01:19]} 33. d6 {[%emt 0:00:46]} 1-0

[Event "36th German Seniors-ch-65 2024"]
[Site "Bad Wildungen"]
[Date "2024.08.28"]
[Round "6.10"]
[White "Vasiljev, Jurij"]
[Black "Namyslo, Holger"]
[Result "1/2-1/2"]
[ECO "D21"]
[WhiteElo "1993"]
[BlackElo "2140"]
[Annotator "RC"]
[PlyCount "98"]
[EventDate "2024.08.22"]
[EventType "swiss"]
[EventCountry "GER"]
[SourceTitle "playchess.com"]
[Source "ChessBase"]
[SourceQuality "1"]
[TimeControl "40/5400+30:1800+30"]

1. d4 {[%emt 0:00:06]} d5 {[%emt 0:00:20]} 2. c4 {[%emt 0:00:11]} dxc4 {[%emt 0:00:23]} 3. Nf3 {[%emt 0:00:27]} a6 {[%emt 0:00:49]} 4. g3 {[%emt 0:02:56]} b5 {[%emt 0:02:05]} 5. Bg2 {[%emt 0:01:31]} Bb7 {[%emt 0:00:21]} 6. O-O {[%emt 0:00:41]} Nf6 {[%emt 0:02:29]} 7. a4 {[%emt 0:00:52]} Nbd7 {[%emt 0:04:11]} 8. b3 {[%emt 0:04:17]} cxb3 {[%emt 0:05:10]} 9. axb5 {[%emt 0:00:34]} axb5 {[%emt 0:04:42]} 10. Rxa8 {[%emt 0:00:19]} Qxa8 {[%emt 0:00:28]} 11. Qxb3 {[%emt 0:00:21]} Qa4 {[%emt 0:07:15]} 12. Qxa4 {[%emt 0:04:54]} bxa4 {[%emt 0:00:06]} 13. Nc3 {[%emt 1:19:51]} e6 {[%emt 0:05:58]} 14. Nxa4 {[%emt 0:00:00]} Bd6 {[%emt 0:00:28]} 15. Nc3 {[%emt 0:00:00]} Ba6 {[%emt 0:03:15]} 16. Bd2 {[%emt 0:00:00]} O-O {[%emt 0:05:34]} 17. Ra1 {[%emt 0:00:00]} Bc4 {[%emt 0:00:09]} 18. e4 {[%emt 0:00:00]} e5 {[%emt 0:02:49]} 19. dxe5 {[%emt 0:00:00]} Nxe5 {[%emt 0:02:31]} 20. Nxe5 {[%emt 0:00:00]} Bxe5 {[%emt 0:00:06]} 21. Rc1 {[%emt 0:00:00]} Rd8 {[%emt 0:01:49]} 22. Be1 {[%emt 0:00:00]} Be6 {[%emt 0:10:04]} 23. h3 {[%emt 0:00:00]} h5 {[%emt 0:01:12]} 24. f4 {[%emt 0:00:00]} Bd4+ {[%emt 0:00:26]} 25. Kh2 {[%emt 0:00:00]} h4 {[%emt 0:03:53]} 26. g4 {[%emt 0:00:00]} Be3 {[%emt 0:01:29]} 27. Rb1 {[%emt 0:00:00]} Bxf4+ {[%emt 0:00:22]} 28. Kh1 {[%emt 0:00:00]} g5 {[%emt 0:00:58]} 29. Ne2 {[%emt 0:00:00]} Be5 {[%emt 0:04:27]} 30. Bc3 {[%emt 0:00:00]} Bxc3 {[%emt 0:00:20]} 31. Nxc3 {[%emt 0:00:00]} Rd3 {[%emt 0:09:39]} 32. Rc1 {[%emt 0:00:00]} Rd2 {[%emt 0:04:15]} 33. Nb5 {[%emt 0:00:00]} Re2 {[%emt 0:04:41]} 34. Nd4 {[%emt 0:00:00]} Re3 {[%emt 0:01:01]} 35. Nxe6 {[%emt 0:00:00]} fxe6 {[%emt 0:00:15]} 36. Rxc7 {[%emt 0:00:00]} Nxe4 {[%emt 0:00:27]} 37. Bxe4 {[%emt 0:00:00]} Rxe4 {[%emt 0:00:03]} 38. Rc5 {[%emt 0:00:00]} e5 {[%emt 0:00:35]} 39. Rc7 {[%emt 0:00:00]} Rf4 {[%emt 0:05:23]} 40. Kg2 {[%emt 0:00:00]} Rf7 {[%emt 0:01:39]} 41. Rc5 {[%emt 0:00:40]} Re7 {[%emt 0:30:07]} 42. Kf3 {[%emt 0:00:15]} Kf7 {[%emt 0:01:59]} 43. Ke4 {[%emt 0:00:12]} Kf6 {[%emt 0:00:11]} 44. Rc8 {[%emt 0:01:26]} Re6 {[%emt 0:00:00]} 45. Rf8+ {[%emt 0:00:00]} Kg6 {[%emt 0:00:00]} 46. Rf5 {[%emt 0:00:00]} Ra6 {[%emt 0:00:00]} 47. Rxe5 {[%emt 0:00:00]} Ra4+ {[%emt 0:00:00]} 48. Kf3 {[%emt 0:00:00]} Ra3+ {[%emt 0:00:00]} 49. Re3 {[%emt 0:00:00]} Ra6 {[%emt 0:00:00]} 1/2-1/2

[Event "36th German Seniors-ch-65 2024"]
[Site "Bad Wildungen"]
[Date "2024.08.28"]
[Round "6.11"]
[White "Rosen, Bernd"]
[Black "Kuempers, Ulrich"]
[Result "1-0"]
[ECO "A36"]
[WhiteElo "2245"]
[BlackElo "1991"]
[Annotator "RC"]
[PlyCount "55"]
[EventDate "2024.08.22"]
[EventType "swiss"]
[EventCountry "GER"]
[SourceTitle "playchess.com"]
[Source "ChessBase"]
[SourceQuality "1"]
[TimeControl "40/5400+30:1800+30"]

1. c4 {[%emt 0:00:04]} c5 {[%emt 0:00:10]} 2. g3 {[%emt 0:00:10]} Nc6 {[%emt 0:00:17]} 3. Bg2 {[%emt 0:00:03]} g6 {[%emt 0:00:19]} 4. Nc3 {[%emt 0:00:02]} Bg7 {[%emt 0:00:15]} 5. a3 {[%emt 0:00:46]} e5 {[%emt 0:00:44]} 6. b4 {[%emt 0:04:07]} d6 {[%emt 0:04:44]} 7. Rb1 {[%emt 0:01:14]} Nge7 {[%emt 0:01:19]} 8. d3 {[%emt 0:00:16]} O-O {[%emt 0:01:51]} 9. e3 {[%emt 0:00:06]} Rb8 {[%emt 0:07:49]} 10. b5 {[%emt 0:01:09]} Na5 {[%emt 0:00:33]} 11. Nge2 {[%emt 0:01:46]} b6 {[%emt 0:01:32]} 12. O-O {[%emt 0:00:13]} Bb7 {[%emt 0:08:21]} 13. e4 {[%emt 0:03:11]} Bc8 {[%emt 1:09:06]} 14. Bd2 {[%emt 0:02:13]} Be6 {[%emt 0:00:00]} 15. Nd5 {[%emt 0:01:35]} Bxd5 {[%emt 0:00:00]} 16. cxd5 {[%emt 0:01:29]} Rc8 {[%emt 0:00:00]} 17. Bc3 {[%emt 0:07:12]} g5 {[%emt 0:02:00]} 18. f4 {[%emt 0:06:17]} gxf4 {[%emt 0:00:00]} 19. gxf4 {[%emt 0:00:07]} Ng6 {[%emt 0:01:00]} 20. fxe5 {[%emt 0:17:47]} dxe5 {[%emt 0:00:00]} 21. Kh1 {[%emt 0:02:50]} Nb7 {[%emt 0:01:00]} 22. Ng3 {[%emt 0:06:33]} Nd6 {[%emt 0:00:00]} 23. Nf5 {[%emt 0:03:22]} Nxf5 {[%emt 0:00:00]} 24. Rxf5 {[%emt 0:00:40]} Qe7 {[%emt 0:00:00]} 25. Qg4 {[%emt 0:01:36]} Kh8 {[%emt 0:00:00]} 26. Rbf1 {[%emt 0:01:23]} f6 {[%emt 0:00:00]} 27. Bd2 {[%emt 0:02:33]} Rg8 {[%emt 0:00:00]} 28. Rh5 {[%emt 0:02:26]} 1-0

[Event "36th German Seniors-ch-65 2024"]
[Site "Bad Wildungen"]
[Date "2024.08.28"]
[Round "6.12"]
[White "Huettemann, Karl-Heinz"]
[Black "Brueggemann, Joachim"]
[Result "0-1"]
[ECO "A25"]
[WhiteElo "2037"]
[BlackElo "2267"]
[Annotator "RC"]
[PlyCount "77"]
[EventDate "2024.08.22"]
[EventType "swiss"]
[EventCountry "GER"]
[SourceTitle "playchess.com"]
[Source "ChessBase"]
[SourceQuality "1"]
[TimeControl "40/5400+30:1800+30"]

1. c4 {[%emt 0:00:03]} e5 {[%emt 0:00:07]} 2. g3 {[%emt 0:00:13]} Nc6 {[%emt 0:00:16]} 3. Bg2 {[%emt 0:00:08]} d6 {[%emt 0:00:05]} 4. Nc3 {[%emt 0:00:42]} Be6 {[%emt 0:00:04]} 5. d3 {[%emt 0:00:48]} Qd7 {[%emt 0:00:10]} 6. Rb1 {[%emt 0:03:34]} Nge7 {[%emt 0:00:16]} 7. Nd5 {[%emt 0:01:19]} Nd8 {[%emt 0:00:10]} 8. e4 {[%emt 0:05:04]} c6 {[%emt 0:00:30]} 9. Nc3 {[%emt 0:01:20]} g6 {[%emt 0:02:49]} 10. Nf3 {[%emt 0:06:56]} Bh3 {[%emt 0:02:41]} 11. O-O {[%emt 0:00:19]} Bg7 {[%emt 0:15:54]} 12. Be3 {[%emt 0:07:08]} c5 {[%emt 0:12:24]} 13. Nd5 {[%emt 0:08:17]} Nxd5 {[%emt 0:00:32]} 14. cxd5 {[%emt 0:00:05]} O-O {[%emt 0:05:30]} 15. Ng5 {[%emt 0:04:17]} Bxg2 {[%emt 0:01:31]} 16. Kxg2 {[%emt 0:00:02]} h6 {[%emt 0:03:33]} 17. Nh3 {[%emt 0:01:07]} f5 {[%emt 0:02:16]} 18. f3 {[%emt 0:12:23]} Rc8 {[%emt 0:00:18]} 19. Qe2 {[%emt 0:07:00]} Nf7 {[%emt 0:00:09]} 20. Rfc1 {[%emt 0:02:15]} g5 {[%emt 0:00:15]} 21. Nf2 {[%emt 0:07:22]} Nh8 {[%emt 0:01:17]} 22. b4 {[%emt 0:02:35]} b6 {[%emt 0:00:09]} 23. a4 {[%emt 0:05:39]} Ng6 {[%emt 0:00:04]} 24. a5 {[%emt 0:00:53]} g4 {[%emt 0:00:24]} 25. exf5 {[%emt 0:02:13]} gxf3+ {[%emt 0:01:09]} 26. Qxf3 {[%emt 0:00:05]} Rxf5 {[%emt 0:00:19]} 27. Qe4 {[%emt 0:02:24]} Rcf8 {[%emt 0:00:33]} 28. Nh1 {[%emt 0:11:07]} Qf7 {[%emt 0:00:53]} 29. Kg1 {[%emt 0:04:08]} Ne7 {[%emt 0:00:24]} 30. bxc5 {[%emt 0:01:56]} bxc5 {[%emt 0:00:26]} 31. g4 {[%emt 0:02:04]} Rf6 {[%emt 0:07:39]} 32. Ng3 {[%emt 0:01:26]} Nxd5 {[%emt 0:01:32]} 33. Nh5 {[%emt 0:01:06]} Rf3 {[%emt 0:01:45]} 34. Bd2 {[%emt 0:00:35]} Ne7 {[%emt 0:02:12]} 35. Ng3 {[%emt 0:00:45]} d5 {[%emt 0:03:15]} 36. Qe1 {[%emt 0:00:15]} Rxd3 {[%emt 0:02:27]} 37. Rb7 {[%emt 0:00:29]} Qe6 {[%emt 0:02:04]} 38. g5 {[%emt 0:00:47]} e4 {[%emt 0:00:40]} 39. gxh6 {[%emt 0:00:00]} 0-1

[Event "36th German Seniors-ch-65 2024"]
[Site "Bad Wildungen"]
[Date "2024.08.28"]
[Round "6.13"]
[White "Gries, Volker"]
[Black "Klundt, Klaus"]
[Result "0-1"]
[ECO "A04"]
[WhiteElo "2012"]
[BlackElo "2264"]
[Annotator "RC"]
[PlyCount "68"]
[EventDate "2024.08.22"]
[EventType "swiss"]
[EventCountry "GER"]
[SourceTitle "playchess.com"]
[Source "ChessBase"]
[SourceQuality "1"]
[TimeControl "40/5400+30:1800+30"]

1. e4 {[%emt 0:00:03]} c5 {[%emt 0:00:06]} 2. Nf3 {[%emt 0:00:06]} e6 {[%emt 0:00:07]} 3. d3 {[%emt 0:00:34]} Nc6 {[%emt 0:00:09]} 4. g3 {[%emt 0:00:05]} g6 {[%emt 0:00:17]} 5. Bg2 {[%emt 0:00:26]} Bg7 {[%emt 0:00:06]} 6. O-O {[%emt 0:00:18]} Nge7 {[%emt 0:00:08]} 7. c3 {[%emt 0:04:09]} O-O {[%emt 0:00:47]} 8. Be3 {[%emt 0:03:21]} b6 {[%emt 0:02:15]} 9. d4 {[%emt 0:00:14]} cxd4 {[%emt 0:01:12]} 10. Nxd4 {[%emt 0:00:18]} Bb7 {[%emt 0:01:43]} 11. Qd2 {[%emt 0:06:52]} d5 {[%emt 0:00:48]} 12. exd5 {[%emt 0:09:06]} Nxd5 {[%emt 0:01:26]} 13. Nxc6 {[%emt 0:00:06]} Bxc6 {[%emt 0:00:17]} 14. Bh6 {[%emt 0:00:05]} Ne7 {[%emt 0:02:54]} 15. Bxg7 {[%emt 0:02:36]} Kxg7 {[%emt 0:00:03]} 16. Rd1 {[%emt 0:12:48]} Bxg2 {[%emt 0:01:50]} 17. Kxg2 {[%emt 0:57:53]} Qc7 {[%emt 0:01:11]} 18. Qe2 {[%emt 0:00:00]} Qc6+ {[%emt 0:06:46]} 19. Qf3 {[%emt 0:00:00]} Rad8 {[%emt 0:00:25]} 20. Qxc6 {[%emt 0:00:00]} Nxc6 {[%emt 0:00:02]} 21. Na3 {[%emt 0:00:00]} Kf6 {[%emt 0:01:15]} 22. Nc4 {[%emt 0:00:00]} Ke7 {[%emt 0:00:29]} 23. Kf1 {[%emt 0:00:00]} e5 {[%emt 0:02:18]} 24. a4 {[%emt 0:00:00]} Ke6 {[%emt 0:00:33]} 25. Ke2 {[%emt 0:00:00]} f5 {[%emt 0:01:26]} 26. f3 {[%emt 0:00:00]} h5 {[%emt 0:05:29]} 27. Rxd8 {[%emt 0:00:00]} Rxd8 {[%emt 0:01:21]} 28. Rd1 {[%emt 0:00:00]} Rxd1 {[%emt 1:09:07]} 29. Kxd1 g5 {[%emt 0:00:00]} 30. Ke2 {[%emt 0:00:00]} g4 {[%emt 0:00:00]} 31. b4 {[%emt 0:00:00]} Ne7 {[%emt 0:00:00]} 32. fxg4 {[%emt 0:00:00]} hxg4 {[%emt 0:00:00]} 33. Kd3 {[%emt 0:00:00]} Nd5 {[%emt 0:00:00]} 34. Nd2 {[%emt 0:00:00]} e4+ {[%emt 0:03:00]} 0-1

[Event "36th German Seniors-ch-65 2024"]
[Site "Bad Wildungen"]
[Date "2024.08.28"]
[Round "6.14"]
[White "Kierzek, Mira"]
[Black "Nehmert, Ulrich"]
[Result "0-1"]
[ECO "A43"]
[WhiteElo "2007"]
[BlackElo "2255"]
[Annotator "RC"]
[PlyCount "78"]
[EventDate "2024.08.22"]
[EventType "swiss"]
[EventCountry "GER"]
[SourceTitle "playchess.com"]
[Source "ChessBase"]
[SourceQuality "1"]
[TimeControl "40/5400+30:1800+30"]

1. d4 {[%emt 0:00:07]} Nf6 {[%emt 0:00:19]} 2. Nf3 {[%emt 0:00:16]} g6 {[%emt 0:00:15]} 3. Nc3 {[%emt 0:01:39]} c5 {[%emt 0:05:01]} 4. d5 {[%emt 0:07:01]} d6 {[%emt 0:01:25]} 5. e4 {[%emt 0:01:01]} Bg4 {[%emt 0:02:00]} 6. Be2 {[%emt 0:05:19]} Bg7 {[%emt 0:02:21]} 7. O-O {[%emt 0:05:53]} O-O {[%emt 0:00:57]} 8. h3 {[%emt 0:00:42]} Bxf3 {[%emt 0:00:30]} 9. Bxf3 {[%emt 0:00:35]} Na6 {[%emt 0:03:24]} 10. Be3 {[%emt 0:06:40]} Nc7 {[%emt 0:04:12]} 11. a4 {[%emt 0:03:20]} Rb8 {[%emt 0:01:52]} 12. Qd2 {[%emt 0:12:24]} Re8 {[%emt 0:00:42]} 13. Nb5 {[%emt 0:03:08]} a6 {[%emt 0:01:19]} 14. Nxc7 {[%emt 0:02:12]} Qxc7 {[%emt 0:00:03]} 15. Rab1 {[%emt 0:02:06]} b5 {[%emt 0:00:58]} 16. axb5 {[%emt 0:02:30]} axb5 {[%emt 0:00:28]} 17. c3 {[%emt 0:00:48]} Nd7 {[%emt 0:10:34]} 18. Be2 {[%emt 0:06:23]} b4 {[%emt 0:02:25]} 19. Rfc1 {[%emt 0:06:58]} Qb6 {[%emt 0:00:27]} 20. Ra1 {[%emt 0:03:33]} Rec8 {[%emt 0:07:31]} 21. Bg4 {[%emt 0:03:33]} bxc3 {[%emt 0:07:01]} 22. bxc3 {[%emt 0:00:20]} Rd8 {[%emt 0:00:09]} 23. Bg5 {[%emt 0:03:38]} Nf6 {[%emt 0:03:21]} 24. Bf3 {[%emt 0:01:23]} Rb7 {[%emt 0:03:04]} 25. Qd3 {[%emt 0:03:29]} Rdb8 {[%emt 0:00:50]} 26. Ra3 {[%emt 0:03:14]} h6 {[%emt 0:04:29]} 27. Bf4 {[%emt 0:02:37]} Nd7 {[%emt 0:00:44]} 28. Be2 {[%emt 0:01:06]} Qb2 {[%emt 0:04:51]} 29. Raa1 {[%emt 0:07:45]} g5 {[%emt 0:01:10]} 30. Be3 {[%emt 0:01:32]} Rb3 {[%emt 0:01:21]} 31. Ra7 {[%emt 0:02:01]} Ne5 {[%emt 0:00:54]} 32. Qd2 {[%emt 0:00:25]} Ng6 {[%emt 0:00:32]} 33. Rc2 {[%emt 0:00:58]} Qb1+ {[%emt 0:00:31]} 34. Kh2 {[%emt 0:01:23]} Rb2 {[%emt 0:03:28]} 35. Rxb2 {[%emt 0:00:08]} Be5+ {[%emt 0:00:37]} 36. g3 {[%emt 0:00:47]} Rxb2 {[%emt 0:00:05]} 37. Qd3 {[%emt 0:01:06]} Qe1 {[%emt 0:00:17]} 38. Bh5 {[%emt 0:00:35]} Bxg3+ {[%emt 0:00:45]} 39. Kg2 {[%emt 0:00:46]} Nh4+ {[%emt 0:29:08]} 0-1

[Event "36th German Seniors-ch-65 2024"]
[Site "Bad Wildungen"]
[Date "2024.08.28"]
[Round "6.15"]
[White "Koehler, Gerhard"]
[Black "Hartlieb, Juergen"]
[Result "1-0"]
[ECO "E72"]
[WhiteElo "2210"]
[BlackElo "2013"]
[Annotator "RC"]
[PlyCount "47"]
[EventDate "2024.08.22"]
[EventType "swiss"]
[EventCountry "GER"]
[SourceTitle "playchess.com"]
[Source "ChessBase"]
[SourceQuality "1"]
[TimeControl "40/5400+30:1800+30"]

1. c4 {[%emt 0:00:03]} Nf6 {[%emt 0:00:19]} 2. Nc3 {[%emt 0:00:30]} d6 {[%emt 0:00:34]} 3. g3 {[%emt 0:00:35]} g6 {[%emt 0:00:25]} 4. Bg2 {[%emt 0:00:16]} Bg7 {[%emt 0:00:46]} 5. d4 {[%emt 0:00:33]} O-O {[%emt 0:00:50]} 6. e4 {[%emt 0:00:53]} Nbd7 {[%emt 0:05:56]} 7. Nge2 {[%emt 0:00:22]} e5 {[%emt 0:01:00]} 8. d5 {[%emt 0:00:37]} a5 {[%emt 0:00:38]} 9. O-O {[%emt 0:01:27]} Nc5 {[%emt 0:01:30]} 10. Be3 {[%emt 0:01:53]} Ne8 {[%emt 0:04:34]} 11. f4 {[%emt 0:04:20]} f5 {[%emt 0:13:58]} 12. exf5 {[%emt 0:11:30]} Bxf5 {[%emt 0:02:33]} 13. fxe5 {[%emt 0:00:12]} Bxe5 {[%emt 0:01:00]} 14. Nd4 {[%emt 0:00:12]} Ng7 {[%emt 0:03:11]} 15. Qd2 {[%emt 0:02:51]} Qd7 {[%emt 0:13:59]} 16. Nxf5 {[%emt 0:05:42]} Nxf5 {[%emt 0:01:12]} 17. Bf2 {[%emt 0:00:30]} Qg7 {[%emt 0:02:02]} 18. Rad1 {[%emt 0:02:21]} Rae8 {[%emt 0:05:49]} 19. Rfe1 {[%emt 0:09:25]} Bf6 {[%emt 0:04:01]} 20. Rxe8 {[%emt 0:12:21]} Rxe8 {[%emt 0:00:06]} 21. Nb5 {[%emt 0:02:19]} b6 {[%emt 0:07:40]} 22. g4 {[%emt 0:08:03]} Ne7 {[%emt 0:21:04]} 23. Nxc7 {[%emt 0:01:30]} g5 {[%emt 0:01:59]} 24. Nxe8 {[%emt 0:00:20]} 1-0

[Event "36th German Seniors-ch-65 2024"]
[Site "Bad Wildungen"]
[Date "2024.08.28"]
[Round "6.16"]
[White "Gollasch, Theo-Heinz"]
[Black "Kannenberg, Karl-Heinz"]
[Result "0-1"]
[ECO "D02"]
[WhiteElo "2006"]
[BlackElo "2121"]
[Annotator "RC"]
[PlyCount "86"]
[EventDate "2024.08.22"]
[EventType "swiss"]
[EventCountry "GER"]
[SourceTitle "playchess.com"]
[Source "ChessBase"]
[SourceQuality "1"]
[TimeControl "40/5400+30:1800+30"]

1. Nf3 {[%emt 0:04:17]} d5 {[%emt 0:00:09]} 2. g3 {[%emt 0:00:08]} Nd7 {[%emt 0:00:20]} 3. d4 {[%emt 0:00:08]} Nb6 {[%emt 0:00:05]} 4. Bg2 {[%emt 0:00:20]} Bf5 {[%emt 0:00:36]} 5. b3 {[%emt 0:01:12]} e6 {[%emt 0:01:40]} 6. O-O {[%emt 0:00:18]} h6 {[%emt 0:00:19]} 7. Nbd2 {[%emt 0:00:56]} Nf6 {[%emt 0:00:38]} 8. c4 {[%emt 0:00:12]} c6 {[%emt 0:04:37]} 9. Bb2 {[%emt 0:01:46]} Be7 {[%emt 0:00:30]} 10. Re1 {[%emt 0:00:55]} O-O {[%emt 0:00:37]} 11. Ne5 {[%emt 0:03:13]} Nbd7 {[%emt 0:01:28]} 12. Nxd7 {[%emt 0:03:15]} Qxd7 {[%emt 0:00:35]} 13. Rc1 {[%emt 0:02:35]} Rfd8 {[%emt 0:05:36]} 14. h3 {[%emt 0:00:25]} Bd6 {[%emt 0:01:31]} 15. Kh2 {[%emt 0:05:05]} Qe7 {[%emt 0:00:28]} 16. e4 {[%emt 0:00:59]} dxe4 {[%emt 0:00:32]} 17. Nxe4 {[%emt 0:00:22]} Nxe4 {[%emt 0:03:42]} 18. Bxe4 {[%emt 0:00:02]} Bxe4 {[%emt 0:00:16]} 19. Rxe4 {[%emt 0:00:02]} Ba3 {[%emt 0:00:18]} 20. Qc2 {[%emt 0:05:00]} Rd7 {[%emt 0:02:21]} 21. Re2 {[%emt 0:08:45]} Bxb2 {[%emt 0:01:59]} 22. Qxb2 {[%emt 0:00:05]} Qf6 {[%emt 0:00:21]} 23. Re4 {[%emt 0:06:03]} Rad8 {[%emt 0:00:42]} 24. Rf4 {[%emt 0:00:23]} Qe7 {[%emt 0:01:42]} 25. Re1 {[%emt 0:03:38]} g5 {[%emt 0:01:33]} 26. Rfe4 {[%emt 0:02:40]} Qf6 {[%emt 0:00:11]} 27. h4 {[%emt 0:06:55]} Rxd4 {[%emt 0:00:50]} 28. hxg5 {[%emt 0:00:47]} hxg5 {[%emt 0:00:22]} 29. Rxd4 {[%emt 0:01:32]} Qxd4 {[%emt 0:01:10]} 30. Qxd4 {[%emt 0:02:46]} Rxd4 {[%emt 0:00:10]} 31. Re5 {[%emt 0:00:09]} g4 {[%emt 0:01:07]} 32. Kg2 {[%emt 0:01:20]} Kf8 {[%emt 0:00:51]} 33. Kf1 {[%emt 0:00:41]} Rd2 {[%emt 0:01:18]} 34. a4 {[%emt 0:06:44]} Rd3 {[%emt 0:01:21]} 35. Re4 {[%emt 0:00:03]} Rxb3 {[%emt 0:00:31]} 36. Rxg4 {[%emt 0:00:02]} Rb4 {[%emt 0:00:31]} 37. a5 {[%emt 0:04:00]} Ra4 {[%emt 0:00:37]} 38. Ke2 {[%emt 0:00:15]} Rxa5 {[%emt 0:01:59]} 39. Kd3 {[%emt 0:05:50]} Ra3+ {[%emt 0:02:44]} 40. Kd2 {[%emt 0:04:24]} Ra4 {[%emt 0:00:32]} 41. Rh4 {[%emt 0:30:28]} b5 {[%emt 0:30:20]} 42. Rh8+ {[%emt 0:00:24]} Kg7 {[%emt 0:00:08]} 43. Ra8 {[%emt 0:00:25]} Rxc4 {[%emt 0:00:48]} 0-1

[Event "36th German Seniors-ch-65 2024"]
[Site "Bad Wildungen"]
[Date "2024.08.28"]
[Round "6.17"]
[White "Wenner, Tobias"]
[Black "Hanisch, Friedrich"]
[Result "1/2-1/2"]
[ECO "D30"]
[WhiteElo "2067"]
[BlackElo "2012"]
[Annotator "RC"]
[PlyCount "85"]
[EventDate "2024.08.22"]
[EventType "swiss"]
[EventCountry "GER"]
[SourceTitle "playchess.com"]
[Source "ChessBase"]
[SourceQuality "1"]
[TimeControl "40/5400+30:1800+30"]

1. Nf3 {[%emt 0:00:08]} Nf6 {[%emt 0:00:13]} 2. c4 {[%emt 0:00:08]} b6 {[%emt 0:00:35]} 3. g3 {[%emt 0:02:08]} e6 {[%emt 0:01:10]} 4. Bg2 {[%emt 0:00:10]} Bb7 {[%emt 0:00:26]} 5. O-O {[%emt 0:00:13]} c5 {[%emt 0:00:55]} 6. Nc3 {[%emt 0:01:31]} Be7 {[%emt 0:09:20]} 7. b3 {[%emt 0:01:37]} O-O {[%emt 0:00:18]} 8. Bb2 {[%emt 0:00:15]} d5 {[%emt 0:03:40]} 9. cxd5 {[%emt 0:07:01]} exd5 {[%emt 0:01:52]} 10. d4 {[%emt 0:01:18]} Nc6 {[%emt 0:06:34]} 11. Rc1 {[%emt 0:04:32]} Nxd4 {[%emt 0:16:14]} 12. Nxd4 {[%emt 0:00:26]} cxd4 {[%emt 0:00:03]} 13. Nb5 {[%emt 0:01:55]} a6 {[%emt 0:04:32]} 14. Nxd4 {[%emt 0:00:17]} Qd7 {[%emt 0:00:25]} 15. Qd3 {[%emt 0:02:15]} Ne4 {[%emt 0:20:17]} 16. Rc2 {[%emt 0:06:07]} Rac8 {[%emt 0:00:51]} 17. Rfc1 {[%emt 0:01:18]} Rxc2 {[%emt 0:00:28]} 18. Rxc2 {[%emt 0:00:12]} Rc8 {[%emt 0:00:50]} 19. e3 {[%emt 0:07:58]} Rxc2 {[%emt 0:06:24]} 20. Nxc2 {[%emt 0:00:53]} Qd8 {[%emt 0:01:54]} 21. Ba3 {[%emt 0:11:33]} g6 {[%emt 0:04:51]} 22. Bb2 {[%emt 0:01:23]} Bf6 {[%emt 0:01:02]} 23. Nd4 {[%emt 0:02:28]} Qe7 {[%emt 0:03:03]} 24. a3 {[%emt 0:07:36]} h5 {[%emt 0:01:30]} 25. h4 {[%emt 0:00:12]} Be5 {[%emt 0:02:46]} 26. b4 {[%emt 0:06:19]} b5 {[%emt 0:01:23]} 27. Qc2 {[%emt 0:03:14]} Qc7 {[%emt 0:00:57]} 28. Qxc7 {[%emt 0:00:30]} Bxc7 {[%emt 0:00:02]} 29. Nb3 {[%emt 0:00:37]} Bc6 {[%emt 0:02:12]} 30. Bd4 {[%emt 0:04:19]} f5 {[%emt 0:03:24]} 31. Kf1 {[%emt 0:01:11]} Kf7 {[%emt 0:00:38]} 32. Ke2 {[%emt 0:02:12]} Ke7 {[%emt 0:01:52]} 33. Bf1 {[%emt 0:04:31]} Kd8 {[%emt 0:01:38]} 34. Nc5 {[%emt 0:00:33]} Nxc5 {[%emt 0:05:11]} 35. Bxc5 {[%emt 0:00:09]} a5 {[%emt 0:00:00]} 36. Kd3 {[%emt 0:01:59]} axb4 {[%emt 0:00:00]} 37. axb4 {[%emt 0:00:08]} Kd7 {[%emt 0:00:00]} 38. Kc3 {[%emt 0:04:29]} Ke6 {[%emt 0:00:00]} 39. Bd4 {[%emt 0:00:40]} Bd6 {[%emt 0:00:00]} 40. Be2 {[%emt 0:00:50]} Bc7 {[%emt 0:00:00]} 41. Bg7 {[%emt 0:34:04]} Bb6 {[%emt 0:31:55]} 42. Bf8 {[%emt 0:01:34]} Bc7 {[%emt 0:01:33]} 43. Bg7 {[%emt 0:11:07]} 1/2-1/2